Cogmind - Beta 16.1 @@@ ROGUE MODE // 2026.03.30 @ 12:58:51 Player: Thqwib-Linux Result: Destroyed by 8F-F8V(R) with Subdweller Machine Gun Performance ------------- Evolutions (0) 0 Regions Visited (2) 400 Robots Destroyed (28) 140 Value Destroyed (670) 670 Prototype IDs (5) 100 Alien Tech Used (0) 0 Bonus (0) 0 TOTAL SCORE: 1310 Bonus ------- None Cogmind --------- Core Integrity 0/250 Matter 269/300 Energy 155/160 System Corruption 0% Temperature Cool (6) Movement Walking (190) Ox1 Location -10/Subcaves Parts ------- > --- POWER (1) -------- Light Nuclear Core > --- PROPULSION (2) --- Aluminum Leg Aluminum Leg > --- UTILITY (2) ------ Improved Heat Sink Medium Storage Unit > --- WEAPON (2) ------- Particle Gun Battle Rifle > --- INVENTORY (10) --- Structural Scanner Light Armor Plating Scrap Shield Beam Cannon Heavy Assault Rifle Battle Rifle Subdweller Machine Gun Mining Laser Peak State ------------ > --- POWER ------------ Light Nuclear Core > --- PROPULSION ------- Light Treads Light Treads > --- UTILITY ---------- Improved Heat Sink Large Storage Unit > --- WEAPON ----------- Particle Gun Particle Gun > --- INVENTORY -------- Light Ion Engine Light Ion Engine Light Treads Heat Sink Structural Scanner Seismic Detector Scrap Shield Assault Rifle Light Assault Rifle Light Assault Rifle Mining Laser Mace [Rating: 14] Favorites ----------- Power Ion Engine Engine Ion Engine Power Core Light Nuclear Core Propulsion Aluminum Leg Treads Light Treads Leg Aluminum Leg Utility Improved Heat Sink Device Improved Heat Sink Storage Medium Storage Unit Weapon Particle Gun Energy Gun Particle Gun Ballistic Gun Assault Rifle Special Weapon Mining Laser Build | -11 -10 -10 ------- Run | Yrd Mat Sub Slots Evolved . | . . . Power . | . . . Propulsion . | . . . Utility . | . . . Weapon . | . . . Parts Attached 25 | 4 15 6 Power 4 | . 3 1 Engine 3 | . 2 1 Core 1 | . 1 . Reactor . | . . . Propulsion 8 | 3 3 2 Treads 3 | 2 1 . Leg 5 | 1 2 2 Wheel . | . . . Hover . | . . . Flight . | . . . Utility 6 | . 6 . Device 3 | . 3 . Storage 3 | . 3 . Processor . | . . . Hackware . | . . . Protection . | . . . Artifact . | . . . Weapon 7 | 1 3 3 Energy Gun 2 | . 2 . Energy Cannon . | . . . Ballistic Gun 4 | 1 1 2 Ballistic Cannon . | . . . Launcher . | . . . Special Weapon 1 | . . 1 Impact Weapon . | . . . Slashing Weapon . | . . . Piercing Weapon . | . . . Special Melee Weapon . | . . . Unidentified Prototypes . | . . . Parts Lost 2 | . 1 1 Power . | . . . Propulsion 2 | . 1 1 Utility . | . . . Weapon . | . . . Highest Loss Streak 1 | . 1 1 To Critical Strikes . | . . . Average Backups 7 | 7 7 8 Power . | 1 1 . Propulsion . | 4 . 1 Utility 2 | . 2 3 Weapon 3 | 2 3 4 Tool/Special . | . . . Unused Backups 15 | . 8 7 Power 2 | . 2 . Propulsion . | . . . Utility 4 | . 1 3 Weapon 9 | . 5 4 Tool/Special . | . . . Average Slot Usage (%) 98 | . 97 100 Engine 10 | . 10 10 Core 3 | . 3 3 Treads 11 | . 14 . Leg 16 | . 13 28 Device 12 | . 12 14 Storage 14 | . 14 14 Energy Gun 17 | . 17 18 Ballistic Gun 8 | . 10 3 Special Weapon 1 | . . 5 Peak Build Rating 14 | 6 14 14 Average Rating 10 | 5 10 12 On Entrance 8 | 6 6 12 Avg Prop Armor Cover (%) . | . . . Naked Turns . | . . . Heaviest Build 32 | 12 32 22 Greatest Support 40 | 20 40 20 Greatest Overweight (x) 2 | . 1 2 Average Overweight (x) . | . . . Largest Inventory Capacity 15 | 8 15 10 Average Capacity 11 | 8 11 10 Most Carried 13 | 7 13 10 Average Carried 8 | 5 8 9 Final Capacity 10 | 8 10 10 Final Carried 10 | 1 10 9 Class Distribution -------------------- 59% | Scavenger-Mutant 40% | Mutant Dominant Class ---------------- Mutant | -10/Materials Scavenger-Mutant | -10/Subcaves Resources | -11 -10 -10 ----------- Run | Yrd Mat Sub Matter Collected 716 | 200 455 61 Remotely . | . . . Salvage Created 879 | . 585 294 Parts 66 | . 47 19 Haulers Intercepted 2 | . 2 . Recyclers Shooed 1 | . 1 . Parts Field Recycled . | . . . Retrieved Matter . | . . . Parts Self-Destructed 5 | . . 5 Prevented . | . . . Parts Restored . | . . . Kills | -11 -10 -10 ------- Run | Yrd Mat Sub Combat Hostiles Destroyed 23 | . 16 7 Guns 23 | . 16 7 Classes Destroyed 8 | . 7 1 Worker 1 | . 1 . Builder 1 | . 1 . Hauler 2 | . 2 . Operator 1 | . 1 . Swarmer 8 | . 8 . Grunt 9 | . 6 3 Sentry 1 | . . 1 Subdweller 5 | . 2 3 Best Kill Streak 5 | . 5 2 Combat Bots Only 5 | . 5 2 Max Kills in Single Turn 2 | . 2 1 Gunslinging 1 | . 1 . Exploded . | . . . Melee . | . . . Uniques/NPCs Destroyed . | . . . Combat | -11 -10 -10 -------- Run | Yrd Mat Sub Hostile Shots Fired 150 | . 114 36 Missed 30 | . 24 6 Hits 120 | . 90 30 Projectile 120 | . 90 30 Critical Strikes 2 | . 2 . Damage Taken 1331 | . 857 474 Core 259 | . 119 140 Absorbed by Shields . | . . . Regen/Repaired (Parts) 46 | . 46 . Core Remaining (%) 100 | 100 . . Volleys Fired 104 | . 56 48 Largest 2 | . 2 2 Hottest 130 | . 130 130 Shots Fired 182 | . 112 70 Gun 156 | . 112 44 Cannon . | . . . Launcher . | . . . Special 26 | . . 26 Kinetic 91 | . 82 9 Thermal 91 | . 30 61 Explosive . | . . . Electromagnetic . | . . . Robot Hit Streak 16 | . 10 16 Robot Miss Streak 5 | . 5 5 Penetration Max . | . . . Secondary Targets 4 | . 3 1 Max Gunslinging Chain 1 | . 1 1 Shots Hit Robots 96 | . 62 34 Core Hits 48 | . 33 15 Critical Kills 1 | . 1 . Critical Parts Destroyed 1 | . 1 . Critical Strikes 2 | . 2 . Destroy 2 | . 2 . Melee Attacks . | . . . Impact . | . . . Slashing . | . . . Piercing . | . . . Sneak Attacks . | . . . Combat Hostiles . | . . . Follow-up Attacks . | . . . Damage Inflicted 1325 | . 856 469 Guns 1285 | . 816 469 Cannons . | . . . Explosions . | . . . Melee . | . . . Ramming 40 | . 40 . Kinetic 721 | . 613 108 Thermal 564 | . 203 361 Explosive . | . . . Electromagnetic . | . . . Impact . | . . . Slashing . | . . . Piercing . | . . . Highest Corruption . | . . . Average Corruption . | . . . Corruption Purged . | . . . Corruption Blocked . | . . . Overload Shots . | . . . Overflow Damage . | . . . Projectiles . | . . . Explosions . | . . . Melee . | . . . Knockbacks . | . . . Impact . | . . . Kinetic . | . . . Secondary . | . . . Self-Inflicted Damage . | . . . Shots . | . . . Rammed 6 | . 6 . Targets Rammed 7 | . 7 . Kicked 1 | . 1 . Crushed . | . . . Highest Temperature 309 | . 309 4 Average Temperature 76 | . 77 4 Received Heat Transfer 264 | . 114 150 Siege Activations . | . . . Martial Activations . | . . . Shielding Activations . | . . . Robots Disrupted . | . . . Combat Hostiles . | . . . Robots Corrupted . | . . . Combat Hostiles . | . . . Parts Fried . | . . . Impact Corruptions . | . . . Robots Melted . | . . . Combat Hostiles . | . . . Parts Melted 4 | . 3 1 Heat Transferred 1369 | . 481 888 Parts Sabotaged . | . . . Parts Stolen . | . . . Parts Stripped . | . . . Power Chain Reactions . | . . . Alert | -11 -10 -10 ------- Run | Yrd Mat Sub Maximum Alert Level . | . . . Low Security (%) 100 | 100 100 . Level 1 . | . . . Level 2 . | . . . Level 3 . | . . . Level 4 . | . . . Level 5 . | . . . High Security . | . . . Max Security . | . . . Peak Influence 121 | . 121 . Initial . | . . . Average 29 | . 30 . Influence Increases 539 | . 449 90 Destroy 0b10 Robot/C 360 | . 280 80 Destroy 0b10 Robot/NC 25 | . 25 . Destroy Leader 54 | . 44 10 Successful Hack 40 | . 40 . Lose Combat Pursuer 60 | . 60 . Influence Decreases 539 | . 449 90 Time Decay 529 | . 439 90 Lost Part 10 | . 10 . Squads Dispatched 2 | . 2 . Investigation 1 | . 1 . Extermination . | . . . Reinforcement 1 | . 1 . Assault . | . . . Garrison . | . . . Intercept . | . . . Searches Triggered . | . . . Construction Impeded . | . . . Haulers Reinforced . | . . . Active Scanning Responses . | . . . Cargo Convoy Interrupts . | . . . Stealth | -11 -10 -10 --------- Run | Yrd Mat Sub Distress Signals 3 | . 3 . Communications Jammed . | . . . Distress Signals . | . . . Times Spotted 55 | . 46 9 Peak Tracking Total 9 | . 9 2 Tactical Retreats 2 | . 2 . Traps | -11 -10 -10 ------- Run | Yrd Mat Sub Traps Triggered 2 | . 2 . Indirectly . | . . . Trap Hack Attempts . | . . . Triggered . | . . . Disarmed . | . . . Reprogrammed . | . . . Reused . | . . . Traps Extracted . | . . . Installed . | . . . Triggered . | . . . Machines | -11 -10 -10 ---------- Run | Yrd Mat Sub Machines Disabled . | . . . Max in Single Turn . | . . . Machines Repaired . | . . . Machines Dismantled . | . . . Machines Sabotaged . | . . . Overloaded Fab Kills . | . . . Hacking | -11 -10 -10 --------- Run | Yrd Mat Sub Machines Accessed 8 | . 8 . Terminals 7 | . 7 . Fabricators . | . . . Repair Stations 1 | . 1 . Recycling Units . | . . . Scanalyzers . | . . . Garrison Access . | . . . Total Hacks 22 | . 22 . Successful 14 | . 14 . Failed 8 | . 8 . Catastrophic 2 | . 2 . Database Lockouts . | . . . Manual 6 | . 6 . Terminals 18 | . 18 . Fabricators . | . . . Repair Stations 4 | . 4 . Recycling Units . | . . . Scanalyzers . | . . . Garrison Access . | . . . Terminal Hacks 8 | . 8 . Prototype ID Bank 4 | . 4 . Emergency Access Points 1 | . 1 . Locate Traps 1 | . 1 . Hauler Manifests 1 | . 1 . Registered Components 1 | . 1 . Fabricator Hacks . | . . . Repair Station Hacks 3 | . 3 . Scan Component 2 | . 2 . Repair 1 | . 1 . Recycling Unit Hacks . | . . . Scanalyzer . | . . . Garrison Access Hacks . | . . . Unauthorized Hacks 3 | . 3 . Terminals 3 | . 3 . Botnet 3 | . 3 . Fabricators . | . . . Repair Stations . | . . . Recycling Units . | . . . Scanalyzers . | . . . Garrison Access . | . . . Data Cores Recovered 1 | . 1 . Used . | . . . Hacking Detections 8 | . 8 . Full Trace Events . | . . . Feedback Events . | . . . Feedback Blocked . | . . . Robot Schematics Acquired . | . . . Robots Built . | . . . Authchips . | . . . Time . | . . . Total Robot Build Rating . | . . . Part Schematics Acquired . | . . . Parts Built . | . . . Authchips . | . . . Time . | . . . Total Part Build Rating . | . . . Part Studies Acquired . | . . . Parts Repaired 1 | . 1 . Time 32 | . 32 . Parts Recycled . | . . . Recycled Matter . | . . . Retrieved Matter . | . . . Retrieved Components . | . . . Parts Scanalyzed . | . . . Part Schematics Acquired . | . . . Parts Damaged . | . . . Bothacking | -11 -10 -10 ------------ Run | Yrd Mat Sub Used RIF Installer . | . . . Robots Hacked . | . . . Non-combat . | . . . Combat . | . . . Robot Hacks Applied . | . . . Relay Couplers Released . | . . . Fabnet Peak Effective % . | . . . Robots Rewired . | . . . Allies Hacked . | . . . Hacks Repelled . | . . . Allies | -11 -10 -10 -------- Run | Yrd Mat Sub Total Allies . | . . . Largest Group . | . . . Highest-Rated Group . | . . . Highest-Rated Ally . | . . . Total Orders . | . . . Ally Attacks . | . . . Total Damage . | . . . Kills . | . . . Allies Corrupted . | . . . Allies Melted . | . . . Intel | -11 -10 -10 ------- Run | Yrd Mat Sub Active Infowar (turns) 489 | . 489 . Seismic 489 | . 489 . Robot Analysis Total . | . . . Derelict Logs Recovered 1 | . . 1 Drone Launches . | . . . Drone Recoveries . | . . . Exploration | -11 -10 -10 ------------- Run | Yrd Mat Sub Turns Passed 2440 | 9 1899 532 Spaces Moved 1148 | 1 932 215 Core . | . . . Treads 472 | 1 471 . Legs 676 | . 461 215 Wheels . | . . . Hover . | . . . Flight . | . . . Fastest Speed 120 | 160 120 120 Average Speed 171 | 160 174 159 Slowest Speed 260 | 160 190 260 Overloaded Moves . | . . . Propulsion Burnouts . | . . . Robots Hopped . | . . . Potential Cave-ins . | . . . Cave-ins Triggered . | . . . Exploration Rate (%) 38 | 1 98 16 Regions Visited 2 Branch Regions 1 Pre-discovered Areas . | . . . Known Exits Taken . | . . . Unknown Exits Taken 2 | 1 1 . Scrap Searched 3 | . . 3 Spaces Dug . | . . . Terrain Destroyed . | . . . Melee . | . . . Projectile . | . . . AOE . | . . . Terrain Rammed . | . . . Walls Destroyed . | . . . Machines Disabled . | . . . Actions | -11 -10 -10 --------- Run | Yrd Mat Sub Total 1385 | 10 1089 286 Wait 47 | . 42 5 Move 1146 | . 931 215 Hop . | . . . Pick Up 21 | . 17 4 Fast Attach 7 | . 6 1 Attach 4 | 1 2 1 Detach 3 | 1 2 . Swap 20 | 3 12 5 Drop 26 | 5 14 7 Fire 104 | . 56 48 Melee . | . . . Ram . | . . . Kick 1 | . 1 . Crush 6 | . 6 . Escape Stasis . | . . . Rewire . | . . . Trap . | . . . Miscellaneous . | . . . Route ------- -11/Scrapyard -10/Materials (discovered 6 exits: [*Mat x3] / [*Min x2] / [*Sub]) -10/Subcaves (discovered 2 exits: [*Mat] / Rec) History --------- Turn | Location | Event 10 | -11/Scrapyard | Discovered new exit (range 0) 10 | -11/Scrapyard | Entered Materials 344 | -10/Materials | Build established: Mutant 415 | -10/Materials | Discovered new exit (range 16) 610 | -10/Materials | Derelicts attacked the area 618 | -10/Materials | Discovered new exit (range 15) 1168 | -10/Materials | Repaired Particle Gun 1188 | -10/Materials | Discovered new exit (range 10) 1280 | -10/Materials | Build established: Scavenger-Mutant 1367 | -10/Materials | Discovered new exit (range 8) 1517 | -10/Materials | Discovered new exit (range 16) 1892 | -10/Materials | Discovered new exit (range 10) 1909 | -10/Materials | Entered Subcaves 1910 | -10/Subcaves | Approached by a straggling Scientist 1912 | -10/Subcaves | Shifting Twisted Machinery released Sub. Monowheel 1993 | -10/Subcaves | Core integrity fell below 50% 2291 | -10/Subcaves | Discovered new exit (range 13) 2305 | -10/Subcaves | Shifting Twisted Machinery released Battle Rifle 2305 | -10/Subcaves | Identified exit to Recycling 2440 | -10/Subcaves | Core integrity fell below 20% 2441 | -10/Subcaves | Destroyed by 8F-F8V(R) with Subdweller Machine Gun Last Messages --------------- 02240_ Found Battle Rifle. 02240_ Found 35 Matter. 02243_ Dropped Lgt. Assault Rifle. 02243_ Lgt. Assault Rifle crushed and broken. 02243_ Acquired Battle Rifle. 9Y-4EO(c): "I think it's somewhere north of here" 02291_ EXIT=FOUND 02295_ Sub. Power Source shoots sparks and powers down. 02296_ Dropped Broken Sub. Power Source. Battle Rifle falls loose from the Twisted Machinery. 02305_ Acquired derelict log, extracted data. Loading 1 Recycling entrance... 9Y-4EO(c): "I think it's somewhere northeast of here" 02333_ Acquired Battle Rifle. 02349_ 2W-YD4(u) tweaks Twisted Machinery. 02356_ 2W-YD4(u) builds Twisted Machinery. 9Y-4EO(c): "I think it's somewhere northeast of here" 02368_ 2W-YD4(u) builds Twisted Machinery. 9Y-4EO(c): "I think it's somewhere northeast of here" 02434_ Aluminum Leg destroyed. Map ----- +----------------------------------------------------+ | ?????????????????????????????????????????????????? | | ?????????????????????????????????????????????????? | | ?????????????????????????????????????????????????? | | ?????????????????????????????????????????????????? | | ?????????????????????????????????????????????????? | | ?????????????????????????????????????????????????? | | ?????????????????????????????????????????????????? | | ?????????????????????????????????????????????????? | | ?????????????????????????????????????????????????? | | ?????????????????????????????????????????????????? | | ?????????????????????????????????????????????????? | | ?????????????????????????????????????????????????? | | ?????????????????????????????????????????????????? | | ?????????????????????????????????????????????????? | | ?????????????????????????????????????????????????? | | ?????????????????????????????????????????????????? | | ?????????????????????????????????????????????????? | | ????????????????###??????????????????????????????? | | ???????????????## ?????????????????????????????? | | ???????????????? #?##????###??#???????????????? | | ??????????????????u ## #### ## #???????????????? | | ??????????????????## ?????????????????? | | ??????????????????# ???????????????????? | | ???????????????????# ""?????????????????????? | | ??????????????????????# RR##?????????????????????? | | ??????????????????????## @ #?????????????????????? | | ??????????????????????## c###????????????????????? | | ??????????????????????# "##???????????????????? | | ?????????????????"""" # "#########?????####### | | ???????????????? "" #### """ ## #??#### | | ????????????????# ? #??## " #### " | | ?????????????????# #???# "" "" < ## | | ?????????????????# ???# "###"" """" #####" | | ?????????????????# ????# "#?#""""" ##???## | | ???????????????? ?????## ##?###""" "" ### #" | | ??????????????? #???????## ###????##" """" | | ??????????????####?????????###???????## ###""### | | ??????????????????????????????????????###??###?### | | ?????????????????????????????????????????????????? | | ?????????????????????????????????????????????????? | | ?????????????????????????????????????????????????? | | ?????????????????????????????????????????????????? | | ?????????????????????????????????????????????????? | | ?????????????????????????????????????????????????? | | ?????????????????????????????????????????????????? | | ?????????????????????????????????????????????????? | | ?????????????????????????????????????????????????? | | ?????????????????????????????????????????????????? | | ?????????????????????????????????????????????????? | | ?????????????????????????????????????????????????? | +----------------------------------------------------+ Best States ------------- Heat Dissipation 39 Energy Generation 15 Energy Capacity 250 Matter Stores 300 Matter Capacity 300 Sight Range 16 Terrain Scan Density 10 Evasion (%) 55 Recoil Reduction 2 Item Schematics ----------------- None Robot Schematics ------------------ None Fabricated ------------ Nothing Repaired ---------- Particle Gun | 38% | -10/Materials Studied --------- None Alien Tech Used ----------------- None Achievements -------------- None Challenges ------------ None Game ------ Seed LightTeleporterLance Manual? 0 Play Time 00:17:43 Cumulative 76.5 hours Start 2026.03.30 @ 12:42:46 End 2026.03.30 @ 12:58:51 Sessions 1 Manual Loads 0 Difficulty Rogue Special Mode None Game No. 72 Rogue 72 Adventurer 0 Explorer 0 Win Type - Total 3 Types 2/0/1/0/0/0/0/0/0/0 Lore% 51 Gallery% 40 Achievement% 38 Wizard Run 0 Options --------- Layout 0 ASCII 0 Keyboard 1 Movement Arrows Keybinds 0 Fullscreen 2 Font 18/X11Bold Map View 76x50 Zoom Use 0% Tactical HUD 1 Map Filters NONE Filters NONE Steam 1 RUN: 14c6292d-1642-4c41-b909-54ef64b3bad0